Cogmind - Beta 13 X1 @@@ ROGUE MODE // 2023.10.06 @ 16:33:05 Player: Exp. Geonium Core Result: Destroyed by EX-DEC with AWS/EX-DEC Performance ------------- Evolutions (1) 500 Regions Visited (5) 1000 Robots Destroyed (41) 205 Value Destroyed (746) 746 Prototype IDs (27) 540 Alien Tech Used (0) 0 Bonus (300) 300 TOTAL SCORE: 3291 Bonus ------- Aligned with FarCom 300 Cogmind --------- Core Integrity 0/400 Matter 205/300 Energy 257/265 System Corruption 3% Temperature Warm (109) Movement Treading (320) Ox2 Location -9/Exiles Parts ------- > --- POWER (1) -------- Improved Ion Engine > --- PROPULSION (3) --- Light Treads Light Treads > --- UTILITY (3) ------ Huge Storage Unit Experimental Targeting Computer > --- WEAPON (2) ------- Rocket Launcher > --- INVENTORY (25) --- Light Nuclear Core Light Treads Improved Treads Improved Treads Advanced Myomer Leg Experimental Heat Sink Gravity Neutralizer Advanced Weapon Cycler Rocket Launcher Peak State ------------ > --- POWER ------------ Improved Ion Engine > --- PROPULSION ------- Light Treads Improved Treads Improved Treads > --- UTILITY ---------- Huge Storage Unit Improved Targeting Computer Experimental Targeting Computer > --- WEAPON ----------- Light Assault Rifle Rocket Launcher > --- INVENTORY -------- Light Nuclear Core Light Treads Light Treads Improved Treads Improved Treads Advanced Myomer Leg Experimental Heat Sink Gravity Neutralizer Advanced Weapon Cycler Light Assault Rifle Light Assault Rifle Rocket Launcher [Rating: 23] Favorites ----------- Power Improved Ion Engine Engine Improved Ion Engine Propulsion Improved Treads Treads Improved Treads Leg Aluminum Leg Utility Small Storage Unit Device Experimental Heat Sink Storage Small Storage Unit Processor Improved Targeting Computer Protection Light Armor Plating Weapon Light Assault Rifle Ballistic Gun Light Assault Rifle Launcher Rocket Launcher Build | -11 -10 -10 -9 -9 -9 ------- Run | Jun Mat Min Mat Min Exi Slots Evolved 2 | . . . 2 . . Power . | . . . . . . Propulsion 1 | . . . 1 . . Utility 1 | . . . 1 . . Weapon . | . . . . . . Parts Attached 48 | . 3 5 16 1 23 Power 4 | . 1 . 2 . 1 Engine 4 | . 1 . 2 . 1 Core . | . . . . . . Reactor . | . . . . . . Propulsion 14 | . 2 . 6 . 6 Treads 14 | . 2 . 6 . 6 Leg . | . . . . . . Wheel . | . . . . . . Hover . | . . . . . . Flight . | . . . . . . Utility 10 | . . 1 2 1 6 Device 2 | . . . . . 2 Storage 1 | . . . 1 . . Processor 4 | . . . 1 1 2 Hackware . | . . . . . . Protection 3 | . . 1 . . 2 Artifact . | . . . . . . Weapon 20 | . . 4 6 . 10 Energy Gun . | . . . . . . Energy Cannon . | . . . . . . Ballistic Gun 17 | . . 4 5 . 8 Ballistic Cannon . | . . . . . . Launcher 3 | . . . 1 . 2 Special Weapon . | . . . . . . Impact Weapon . | . . . . . . Slashing Weapon . | . . . . . . Piercing Weapon . | . . . . . . Special Melee Weapon . | . . . . . . Unidentified Prototypes 4 | . . . 1 . 3 Parts Lost 20 | . 1 . 1 . 18 Power 2 | . 1 . . . 1 Propulsion 7 | . . . . . 7 Utility 4 | . . . 1 . 3 Weapon 7 | . . . . . 7 Highest Loss Streak 7 | . 1 . 1 . 7 To Critical Strikes 9 | . . . . . 9 Average Slot Usage (%) 96 | . 83 98 94 100 97 Engine 11 | . 12 14 11 11 11 Treads 31 | . 26 28 32 33 32 Storage 16 | . 14 14 14 22 16 Processor 9 | . . . 6 11 14 Protection 3 | . . 12 6 . . Ballistic Gun 22 | . 28 28 22 22 19 Naked Turns . | . . . . . . Heaviest Build 96 | 13 13 16 94 94 96 Greatest Support 69 | 20 40 40 69 69 69 Greatest Overweight (x) 4 | . 4 . 1 1 1 Average Overweight (x) . | . . . . 1 1 Largest Inventory Capacity 25 | . 8 8 25 25 25 Average Capacity 18 | . 8 8 14 25 25 Most Carried 25 | . 8 8 23 25 25 Average Carried 15 | . 7 7 11 23 18 Final Capacity 25 | 8 8 8 25 25 25 Final Carried 25 | 6 8 8 23 25 9 Class Distribution -------------------- 90% | Mutant 9% | Scavenger-Mutant Dominant Class ---------------- Mutant | -10/Materials Mutant | -10/Mines Mutant | -9/Materials Mutant | -9/Mines Mutant | -9/Exiles Resources | -11 -10 -10 -9 -9 -9 ----------- Run | Jun Mat Min Mat Min Exi Matter Collected 1138 | 200 161 85 332 18 342 Remotely . | . . . . . . Salvage Created 1279 | . 269 94 624 54 238 Parts 103 | . 20 13 36 5 29 Haulers Intercepted 1 | . . . 1 . . Recyclers Shooed 4 | . 2 . 1 1 . Parts Field Recycled . | . . . . . . Retrieved Matter . | . . . . . . Parts Self-Destructed . | . . . . . . Prevented . | . . . . . . Kills | -11 -10 -10 -9 -9 -9 ------- Run | Jun Mat Min Mat Min Exi Combat Hostiles Destroyed 29 | . 9 6 12 1 1 Guns 28 | . 9 6 11 1 1 AOE 1 | . . . 1 . . Classes Destroyed 9 | . 3 . 3 1 2 Worker 1 | . . . . 1 . Hauler 1 | . . . 1 . . Recycler 3 | . 1 . 2 . . Mechanic 1 | . . . 1 . . Turret 1 | . . . . . 1 Swarmer 15 | . 6 6 3 . . Grunt 8 | . 3 . 5 . . Sentry 5 | . . . 4 1 . Zionite 5 | . . . . . 5 Best Kill Streak 5 | . 3 3 5 1 2 Combat Bots Only 3 | . 3 3 3 1 1 Max Kills in Single Turn 3 | . 1 1 3 1 1 Gunslinging . | . . . . . . Exploded 1 | . . . 1 . . Melee . | . . . . . . Uniques/NPCs Destroyed 2 | . . . . . 2 8R-AWN (-9/Exiles) EX-BIN (-9/Exiles) Combat | -11 -10 -10 -9 -9 -9 -------- Run | Jun Mat Min Mat Min Exi Damage Taken 3350 | . 364 155 811 35 1985 Core 498 | . 62 29 95 12 300 Absorbed by Shields . | . . . . . . Core Remaining (%) 81 | 100 . 63 . . . Volleys Fired 232 | . 35 19 67 4 107 Largest 2 | . 2 2 2 2 2 Hottest 43 | . 40 40 40 40 43 Shots Fired 414 | . 70 38 131 8 167 Gun 404 | . 70 38 128 8 160 Cannon . | . . . . . . Launcher 10 | . . . 3 . 7 Special . | . . . . . . Kinetic 404 | . 70 38 128 8 160 Thermal . | . . . . . . Explosive 10 | . . . 3 . 7 Electromagnetic . | . . . . . . Robot Hit Streak 27 | . 19 5 12 8 27 Robot Miss Streak 3 | . 2 3 3 3 3 Penetration Max . | . . . . . . Secondary Targets 4 | . 2 2 . . . Max Gunslinging Chain 1 | . 1 1 . . . Shots Hit Robots 291 | . 47 23 93 5 123 Core Hits 108 | . 14 9 37 4 44 Critical Kills 1 | . . . 1 . . Critical Parts Destroyed . | . . . . . . Critical Strikes 2 | . . . 1 . 1 Destroy 2 | . . . 1 . 1 Melee Attacks . | . . . . . . Impact . | . . . . . . Slashing . | . . . . . . Piercing . | . . . . . . Sneak Attacks . | . . . . . . Combat Hostiles . | . . . . . . Follow-up Attacks . | . . . . . . Damage Inflicted 3226 | . 493 206 1186 64 1277 Guns 2528 | . 479 206 733 42 1068 Cannons . | . . . . . . Explosions 662 | . . . 453 . 209 Melee . | . . . . . . Ramming 36 | . 14 . . 22 . Kinetic 2528 | . 479 206 733 42 1068 Thermal . | . . . . . . Explosive 662 | . . . 453 . 209 Electromagnetic . | . . . . . . Impact . | . . . . . . Slashing . | . . . . . . Piercing . | . . . . . . Highest Corruption 3 | . . . . . 3 Average Corruption 1 | . . . . . 1 Corruption Purged . | . . . . . . Corruption Blocked . | . . . . . . Effects 1 | . . . . . 1 Heat Flow Errors 1 | . . . . . 1 Overload Shots . | . . . . . . Overflow Damage 18 | . . . 18 . . Projectiles . | . . . . . . Explosions 18 | . . . 18 . . Melee . | . . . . . . Knockbacks 1 | . . . . 1 . Impact 1 | . . . . 1 . Kinetic . | . . . . . . Secondary . | . . . . . . Self-Inflicted Damage 9 | . . . . . 9 Shots 1 | . . . . . 1 Rammed 7 | . 3 . 1 3 . Targets Rammed 9 | . 4 . 1 4 . Kicked . | . . . . . . Crushed 2 | . 1 . . 1 . Highest Temperature 153 | . 12 12 23 18 153 Average Temperature 6 | . 6 6 6 12 7 Received Heat Transfer 563 | . 66 . 348 60 89 Siege Activations . | . . . . . . Robots Corrupted . | . . . . . . Combat Hostiles . | . . . . . . Parts Fried . | . . . . . . Impact Corruptions . | . . . . . . Robots Melted . | . . . . . . Combat Hostiles . | . . . . . . Parts Melted . | . . . . . . Heat Transferred . | . . . . . . Parts Sabotaged . | . . . . . . Parts Stolen . | . . . . . . Parts Stripped . | . . . . . . Power Chain Reactions . | . . . . . . Missiles Intercepted . | . . . . . . Alert | -11 -10 -10 -9 -9 -9 ------- Run | Jun Mat Min Mat Min Exi Peak Influence 266 | . 266 173 261 84 . Initial 103 | . . 103 22 84 . Average 111 | . 138 119 132 63 . Maximum Alert Level 1 | . 1 1 1 . . Low Security (%) 91 | . 73 99 85 100 . Level 1 8 | . 26 . 14 . . Level 2 . | . . . . . . Level 3 . | . . . . . . Level 4 . | . . . . . . Level 5 . | . . . . . . High Security . | . . . . . . Max Security . | . . . . . . Squads Dispatched 2 | . 2 . . . . Investigation 1 | . 1 . . . . Extermination . | . . . . . . Reinforcement 1 | . 1 . . . . Assault . | . . . . . . Garrison . | . . . . . . Intercept . | . . . . . . Searches Triggered . | . . . . . . Construction Impeded . | . . . . . . Haulers Reinforced . | . . . . . . Active Scanning Responses . | . . . . . . Cargo Convoy Interrupts . | . . . . . . Stealth | -11 -10 -10 -9 -9 -9 --------- Run | Jun Mat Min Mat Min Exi Distress Signals 5 | . 1 . 3 1 . Communications Jammed . | . . . . . . Distress Signals . | . . . . . . Times Spotted 82 | . 13 7 23 3 36 Peak Tracking Total 9 | . 4 3 5 2 9 Tactical Retreats 10 | . . 1 . 1 8 Traps | -11 -10 -10 -9 -9 -9 ------- Run | Jun Mat Min Mat Min Exi Traps Triggered 1 | . 1 . . . . Indirectly . | . . . . . . Trap Hack Attempts . | . . . . . . Triggered . | . . . . . . Disarmed . | . . . . . . Reprogrammed . | . . . . . . Reused . | . . . . . . Traps Extracted . | . . . . . . Installed . | . . . . . . Triggered . | . . . . . . Machines | -11 -10 -10 -9 -9 -9 ---------- Run | Jun Mat Min Mat Min Exi Machines Disabled 5 | . . . . . 5 Max in Single Turn 1 | . . . . . 1 Machines Repaired . | . . . . . . Machines Sabotaged . | . . . . . . Overloaded Fab Kills . | . . . . . . Hacking | -11 -10 -10 -9 -9 -9 --------- Run | Jun Mat Min Mat Min Exi Machines Accessed 3 | . 1 . . . 2 Terminals 1 | . 1 . . . . Fabricators . | . . . . . . Repair Stations . | . . . . . . Recycling Units . | . . . . . . Scanalyzers . | . . . . . . Garrison Access . | . . . . . . Total Hacks 4 | . 2 . . . 2 Successful 2 | . . . . . 2 Failed 2 | . 2 . . . . Catastrophic 1 | . 1 . . . . Database Lockouts . | . . . . . . Manual 3 | . 2 . . . 1 Terminals 2 | . 2 . . . . Fabricators . | . . . . . . Repair Stations . | . . . . . . Recycling Units . | . . . . . . Scanalyzers . | . . . . . . Garrison Access . | . . . . . . Terminal Hacks 2 | . . . . . 2 Record 1 | . . . . . 1 Derelict Proto ID Bank 1 | . . . . . 1 Fabricator Hacks . | . . . . . . Repair Station Hacks . | . . . . . . Recycling Unit Hacks . | . . . . . . Scanalyzer . | . . . . . . Garrison Access Hacks . | . . . . . . Unauthorized Hacks . | . . . . . . Terminals . | . . . . . . Fabricators . | . . . . . . Repair Stations . | . . . . . . Recycling Units . | . . . . . . Scanalyzers . | . . . . . . Garrison Access . | . . . . . . Data Cores Recovered . | . . . . . . Used . | . . . . . . Hacking Detections 1 | . 1 . . . . Full Trace Events . | . . . . . . Feedback Events . | . . . . . . Feedback Blocked . | . . . . . . Robot Schematics Acquired . | . . . . . . Robots Built . | . . . . . . Authchips . | . . . . . . Time . | . . . . . . Total Robot Build Rating . | . . . . . . Part Schematics Acquired . | . . . . . . Parts Built . | . . . . . . Authchips . | . . . . . . Time . | . . . . . . Total Part Build Rating . | . . . . . . Parts Repaired . | . . . . . . Time . | . . . . . . Parts Recycled . | . . . . . . Recycled Matter . | . . . . . . Retrieved Matter . | . . . . . . Retrieved Components . | . . . . . . Parts Scanalyzed . | . . . . . . Part Schematics Acquired . | . . . . . . Parts Damaged . | . . . . . . Bothacking | -11 -10 -10 -9 -9 -9 ------------ Run | Jun Mat Min Mat Min Exi Used RIF Installer . | . . . . . . Robots Hacked . | . . . . . . Non-combat . | . . . . . . Combat . | . . . . . . Robot Hacks Applied . | . . . . . . Relay Couplers Released . | . . . . . . Fabnet Peak Effective % . | . . . . . . Robots Rewired . | . . . . . . Allies Hacked . | . . . . . . Hacks Repelled . | . . . . . . Allies | -11 -10 -10 -9 -9 -9 -------- Run | Jun Mat Min Mat Min Exi Total Allies 3 | . . . . 3 . Largest Group 3 | . . . . 3 3 Highest-Rated Group 40 | . . . . 40 40 Highest-Rated Ally 16 | . . . . 16 16 Total Orders 1 | . . . . . 1 STAY 1 | . . . . . 1 Ally Attacks 75 | . . . . 31 44 Total Damage 451 | . . . . 216 235 Kills 9 | . . . . 5 4 Allies Corrupted . | . . . . . . Allies Melted . | . . . . . . Intel | -11 -10 -10 -9 -9 -9 ------- Run | Jun Mat Min Mat Min Exi Robot Analysis Total . | . . . . . . Derelict Logs Recovered 2 | . . 2 . . . Drone Launches . | . . . . . . Drone Recoveries . | . . . . . . Exploration | -11 -10 -10 -9 -9 -9 ------------- Run | Jun Mat Min Mat Min Exi Turns Passed 3940 | . 376 528 760 651 1625 Spaces Moved 1472 | 1 159 291 253 261 507 Core 1 | . 1 . . . . Treads 1458 | . 146 291 253 261 507 Legs 13 | 1 12 . . . . Wheels . | . . . . . . Hover . | . . . . . . Flight . | . . . . . . Fastest Speed 120 | 120 120 160 160 240 240 Average Speed 206 | 120 157 160 188 240 240 Slowest Speed 250 | 120 250 160 240 240 240 Overloaded Moves . | . . . . . . Propulsion Burnouts . | . . . . . . Robots Hopped . | . . . . . . Cave-ins Triggered . | . . . . . . Time Travels 1 | . . . . . 1 Exploration Rate (%) 40 | 2 33 56 19 59 73 Regions Visited 5 Branch Regions 3 Pre-discovered Areas 1 | . . . . . 1 Known Exits Taken . | . . . . . . Unknown Exits Taken 5 | 1 1 1 1 1 . Scrap Searched 1 | . . 1 . . . Spaces Dug . | . . . . . . Terrain Destroyed 16 | . . . 9 . 7 Melee . | . . . . . . Projectile . | . . . . . . AOE 16 | . . . 9 . 7 Terrain Rammed . | . . . . . . Walls Destroyed . | . . . . . . Machines Disabled . | . . . . . . Actions | -11 -10 -10 -9 -9 -9 --------- Run | Jun Mat Min Mat Min Exi Total 2028 | . 220 322 435 274 777 Wait 201 | . 11 3 63 3 121 Move 1467 | . 158 290 252 260 507 Hop . | . . . . . . Pick Up 38 | . 5 1 22 2 8 Fast Attach 9 | . 2 1 3 . 3 Attach 19 | . 1 . 2 . 16 Detach . | . . . . . . Swap 20 | . . 4 11 1 4 Drop 33 | . 4 4 14 . 11 Fire 232 | . 35 19 67 4 107 Melee . | . . . . . . Ram . | . . . . . . Kick . | . . . . . . Crush 9 | . 4 . 1 4 . Escape Stasis . | . . . . . . Rewire . | . . . . . . Trap . | . . . . . . Miscellaneous . | . . . . . . Route ------- -11/Junkyard -10/Materials (discovered 2 exits: [*Mat] / [*Min]) -10/Mines -9/Materials -9/Mines (discovered 3 exits: [*Mat x2] / *Exi) -9/Exiles History --------- Turn | Location | Event 1 | -11/Junkyard | Discovered new exit (range 0) 1 | -11/Junkyard | Entered Materials 153 | -10/Materials | Discovered new exit (range 16) 303 | -10/Materials | Build established: Mutant 313 | -10/Materials | Discovered new exit (range 12) 377 | -10/Materials | Entered Mines 700 | -10/Mines | Discovered new exit (range 11) 721 | -10/Mines | Received a Rocket Launcher from a helpful Derelict 834 | -10/Mines | Learned Materials interactive machine intel 837 | -10/Mines | Learned Materials machine intel 905 | -10/Mines | Entered Materials 905 | -9/Materials | Evolved 2 slots: Propulsion x1, Utility x1 906 | -9/Materials | Loaded intel: 68 machine locations 907 | -9/Materials | Loaded intel: 18 interactive machine locations 1196 | -9/Materials | Discovered new exit (range 9) 1665 | -9/Materials | Entered Mines 1730 | -9/Mines | Discovered new exit (range 12) 1734 | -9/Mines | Assembled infested the area 1881 | -9/Mines | Assisted by bots powering up and referring to "LRC-V3" 2243 | -9/Mines | Discovered new exit (range 9) 2303 | -9/Mines | Deemed a non-threat by the Exiles lab entrance 2303 | -9/Mines | Discovered new exit (range 5) 2316 | -9/Mines | Entered Exiles 2316 | -9/Exiles | Accompanied by 3 allies 2376 | -9/Exiles | Met 8R-AWN 2477 | -9/Exiles | Met EX-HEX 2545 | -9/Exiles | Met EX-BIN 2571 | -9/Exiles | Aligned with FarCom system 2573 | -9/Exiles | Given EX-Vault access code 2629 | -9/Exiles | Opened EX-Vault 2643 | -9/Exiles | Found Chronowheel 2690 | -9/Exiles | Warned to stay clear of 0b10 Research branches 2764 | -9/Exiles | Met EX-DEC 2774 | -9/Exiles | Learned location of Zion (-6) 3107 | -9/Exiles | Attacked by the Exiles 3186 | -9/Exiles | Activated Chronowheel 3186 | -9/Exiles | Spacetime reconverged on an earlier point 3238 | -9/Exiles | Core integrity fell below 50% 3310 | -9/Exiles | Lost 7 parts (1p3n1u2w) 3335 | -9/Exiles | Core integrity fell below 20% 3353 | -9/Exiles | Destroyed 8R-AWN 3382 | -9/Exiles | Lost 5 parts (2n1u2w) 3384 | -9/Exiles | Found Prototype Processor 3384 | -9/Exiles | Identified Exp. Targeting Computer 3724 | -9/Exiles | Destroyed EX-BIN 3941 | -9/Exiles | Destroyed by EX-DEC with AWS/EX-DEC Last Messages --------------- 03516_ Acquired 7 matter. 03530_ Acquired 3 matter. 03540_ Acquired 10 matter. 03544_ Acquired 14 matter. 03547_ Acquired 3 matter. 03646_ 5L-KAT destroyed. 03672_ EX-BIN: "I just want to science!" 03683_ ZX-C33 destroyed. 03691_ Lgt. Assault Rifle destroyed. 03699_ GM-J5T destroyed. 03724_ EX-BIN: "You can't kill me, my evil twin will get revenge!" 03724_ EX-BIN destroyed. 03738_ FT-UJ3(z) destroyed. 03812_ AM-PHS destroyed. 03814_ Acquired 17 matter. 03932_ Imp. Targeting Computer destroyed. 03935_ Imp. Treads destroyed. 03938_ System corrupted: Heat flow error (+172). 03938_ Lgt. Assault Rifle destroyed. 03939_ Imp. Treads destroyed. Map ----- +----------------------------------------------------+ | ???????# #??###" | | ???????# #???## """""" | | ???????# #???# ######""" | | ???????# #???# ""##????#####""" | | ???????##????#""" """##?????????##""" | | ????????????#""" """##???????????#"""" | | ????????????#""" ""#???????????##"" | | ????????????#" ########??####"""" | | ????????????# ## ####""" | | ????????????#" """" | | ????????????# | | ????????????# | | ????????????## | | ?????????????# " "" | | ?????????????##" "" ""## ##""" " " | | ??????????????#"" ""#### ######""" | | ??????????????#" """"##??# #????###"" | | ??????????????#""" """#???# #??????### | | ???????????????# ""##??#! "???????? | | ???????????????#"" """##???#" !#?????? | | ???????????????##""" ##????#" "#?????? | | ????????????????##"""" ##?????#!!""!"#?????? | | ?????????????????### #??????########?????? | | ???????????????????##### ##???????????????????? | | ???????????????????????## #????????????????????? | | ????????????????????????#@% #????????????????????? | | ????????????????????????# ! #????????????????????? | | ????????????????????????#=* #????????????????????? | | ????????????????????????# #????????????????????? | | ????????????????????????# #????????????????????? | | ????????????????????????#c #????????????????????? | | ????????????????????????# #????????????????????? | | ????????????????????????#! #????????????????????? | | ????????????????????????#=!!#????????????????????? | | ????????????????????#####%!%######???????????????? | | ????????????????????"""""/%!""""""???????????????? | | ???????????????? =%*!!! "#?????????????? | | ?????????????? !!!!! " ????????????? | | ????????????? !! " ???????????? | | ????????????? z " ????????????? | | ?????????????? "" #""???????????? | | ??????????????" " """" """""#?????????????? | | ??????????????##"""########"""######?????????????? | | ??????????????????????????" "??????????????????? | | ??????????????????????????" ""??????????????????? | | ??????????????????????????"""""??????????????????? | | ??????????????????????????? ""???????????????????? | | ?????????????????????????????????????????????????? | | ?????????????????????????????????????????????????? | | ?????????????????????????????????????????????????? | +----------------------------------------------------+ Best States ------------- Heat Dissipation 54 Energy Generation 14 Energy Capacity 280 Matter Stores 300 Matter Capacity 300 Sight Range 16 Terrain Scan Density 10 Armor Coverage 150 Evasion (%) 45 Targeting Accuracy 18 Recoil Reduction 3 Item Schematics ----------------- None Robot Schematics ------------------ None Fabricated ------------ Nothing Alien Tech Used ----------------- None Achievements -------------- None Challenges ------------ None Game ------ Seed SpectralQuantumInterrupter Manual? 0 Play Time 00:20:49 Cumulative 460.1 hours Start 2023.10.06 @ 16:05:42 End 2023.10.06 @ 16:33:05 Sessions 1 Manual Loads 0 Difficulty Rogue Special Mode None Game No. 512 Rogue 512 Adventurer 0 Explorer 0 Win Type - Total 12 Types 8/0/3/1/0/0/0/0/0 Lore% 82 Gallery% 90 Achievement% 80 Wizard Run 0 Options --------- ASCII 0 Keyboard 0 Movement Numpad Keybinds 0 Fullscreen 1 Font 18/Terminus Map View 76x50 Tactical HUD 1 Map Filters NONE Filters NONE Steam 1 RUN: 39c908d0-91e6-4801-a568-82cd7a505588